bitfinex-derivatives/quotes_BTCF0:USTF0_20260113
["timestamp","ask_amount","ask_price","bid_price","bid_amount"]
[1768335355103,0.1050436,94478.0,94454.0,0.06]
[1768335355313,0.09329239,94470.0,94454.0,0.06]
[1768335355513,0.09329239,94470.0,94454.0,0.042]
[1768335356597,0.18774799,94470.0,94454.0,0.042]
[1768335356806,0.19833699,94470.0,94454.0,0.042]
[1768335357611,0.18774799,94470.0,94454.0,0.042]
[1768335357816,0.0944556,94469.0,94454.0,0.042]
[1768335358517,0.1050446,94469.0,94454.0,0.042]
[1768335359016,0.08916308,94469.0,94454.0,0.042]
[1768335359406,0.09975208,94469.0,94454.0,0.042]
[1768335359715,0.01059,94467.0,94454.0,0.042]
[1768335360120,0.08916308,94469.0,94454.0,0.042]
[1768335360317,0.09975208,94469.0,94454.0,0.042]
[1768335361116,0.08916308,94469.0,94454.0,0.042]
[1768335362703,0.09532,94474.0,94454.0,0.042]
[1768335362704,0.1866045,94460.0,94454.0,0.042]
[1768335362906,0.0944556,94457.0,94435.0,0.1453736]
[1768335363106,0.0944556,94457.0,94437.0,0.0453736]
[1768335363311,0.0944556,94457.0,94440.0,0.09329239]
[1768335363614,0.0001588,94456.0,94440.0,0.1]
[1768335363813,0.0001588,94456.0,94440.0,0.19329239]
[1768335364908,0.0001588,94456.0,94443.0,0.010592]
[1768335365109,0.0001588,94456.0,94443.0,0.05]
[1768335369913,0.0001588,94456.0,94443.0,0.08461706]
[1768335370114,0.0001588,94456.0,94444.0,0.03461706]
[1768335370314,0.0001588,94456.0,94445.0,0.03461706]
[1768335370515,0.0001588,94456.0,94445.0,0.09461706]
[1768335371114,0.0001588,94456.0,94445.0,0.07961706]
[1768335371828,0.0001588,94456.0,94445.0,0.06]
[1768335372318,0.09329239,94455.0,94445.0,0.06]
[1768335372519,0.09329239,94455.0,94445.0,0.05989202]
[1768335372720,0.010592,94448.0,94437.0,0.00869743]
[1768335373014,0.0001588,94456.0,94437.0,0.00869743]
[1768335373015,0.09257378,94444.0,94437.0,0.14352005]
[1768335373215,0.09257378,94444.0,94422.0,0.01890346]
[1768335373413,0.18586617,94440.0,94422.0,0.34890346]
[1768335373615,0.09329239,94440.0,94424.0,0.01890346]
[1768335373820,0.09329239,94440.0,94424.0,0.23890346]
[1768335374021,0.09329239,94440.0,94424.0,0.22]
[1768335374022,0.09257378,94439.0,94424.0,0.22]
[1768335375522,0.10316678,94439.0,94424.0,0.22]
[1768335375728,0.09257378,94439.0,94424.0,0.22]
[1768335376528,0.11017881,94438.0,94424.0,0.22]
[1768335376729,0.09958581,94438.0,94424.0,0.22]
[1768335378027,0.09329239,94440.0,94424.0,0.22]
[1768335378028,0.11017881,94437.0,94424.0,0.22]
[1768335378225,0.19051318,94433.0,94413.0,0.00529588]
[1768335378531,0.09958581,94427.0,94413.0,0.24529588]
[1768335379525,0.09329239,94423.0,94413.0,0.24529588]
[1768335379823,0.09329239,94423.0,94413.0,0.04729588]
[1768335379824,0.010594,94422.0,94413.0,0.04729588]
[1768335380027,0.2034722,94423.0,94413.0,0.04719844]
[1768335380233,0.11018081,94422.0,94413.0,0.04719844]
[1768335380427,0.09958581,94419.0,94413.0,0.04719844]
[1768335380730,0.09958581,94419.0,94413.0,0.06]
[1768335381319,0.09958581,94419.0,94394.0,0.04138422]
[1768335381525,0.1928782,94410.0,94394.0,0.43]
[1768335381726,0.1928782,94410.0,94394.0,0.440598]
[1768335381933,0.1928782,94410.0,94396.0,0.010597]
[1768335382232,0.1928782,94410.0,94398.0,0.010597]
[1768335382532,0.09958581,94418.0,94398.0,0.42]
[1768335382731,0.09958581,94418.0,94398.0,0.430597]
[1768335383129,0.09958581,94425.0,94401.0,0.00956788]
[1768335383335,0.09958581,94425.0,94404.0,0.010596]
[1768335383633,0.09329239,94420.0,94404.0,0.090596]
[1768335383832,0.09329239,94420.0,94404.0,0.08]
[1768335384830,0.11017981,94425.0,94404.0,0.08]
[1768335385030,0.09329239,94420.0,94404.0,0.08]
[1768335385723,0.09092737,94424.0,94401.0,0.010597]
[1768335385924,0.09958581,94410.0,94401.0,0.03]
[1768335386234,0.09958581,94410.0,94401.0,0.0298882]
[1768335386235,0.11018181,94410.0,94401.0,0.0298882]
[1768335386430,0.09958581,94410.0,94401.0,0.0298882]
[1768335386825,0.09958581,94409.0,94401.0,2e-07]
[1768335387036,0.09958581,94402.0,94392.0,0.09536]
[1768335387239,0.09958581,94401.0,94392.0,0.10536]
[1768335387633,0.09958581,94401.0,94392.0,0.09036]
[1768335387832,0.09958581,94401.0,94392.0,0.01]
[1768335388339,0.11018281,94401.0,94392.0,0.01]
[1768335388733,0.00015889,94406.0,94392.0,0.01]
[1768335388936,0.09958581,94403.0,94392.0,0.01]
[1768335389239,0.010596,94402.0,94392.0,0.01]
[1768335389630,0.11018181,94403.0,94392.0,0.01]
[1768335390033,0.010596,94401.0,94392.0,0.01]
[1768335390233,0.010596,94399.0,94392.0,0.01]
[1768335390832,0.09958581,94403.0,94392.0,0.01]
[1768335391033,0.11018181,94396.0,94392.0,0.01]
[1768335391231,0.09958581,94396.0,94392.0,0.01]
[1768335391438,0.09958581,94396.0,94392.0,1e-06]
[1768335391739,0.09958581,94394.0,94384.0,0.09536]
[1768335391938,0.09958581,94394.0,94384.0,0.14536]
[1768335392136,0.09092737,94402.0,94384.0,0.14536]
[1768335392343,0.09958581,94405.0,94384.0,0.23795073]
[1768335392533,0.010596,94402.0,94384.0,0.23795073]
[1768335393144,0.11018081,94405.0,94384.0,0.14259073]
[1768335393340,0.010597,94391.0,94384.0,0.05]
[1768335393537,0.11018281,94391.0,94384.0,0.05]
[1768335394340,0.09092737,94397.0,94384.0,0.05]
[1768335394341,0.11018281,94389.0,94384.0,0.05]
[1768335394845,0.09024313,94395.0,94384.0,0.05]
[1768335395235,0.010597,94394.0,94384.0,0.043]
[1768335395632,0.010597,94392.0,94384.0,0.043]
[1768335397939,0.010595,94404.0,94380.0,0.00012284]
[1768335397940,0.18080411,94390.0,94380.0,0.00012284]
[1768335398144,0.09056098,94392.0,94373.0,0.00529813]
[1768335398337,0.09056098,94392.0,94373.0,0.05529813]
[1768335398545,0.09024313,94393.0,94373.0,0.05529813]
[1768335398747,0.010597,94392.0,94373.0,0.05529813]
[1768335398944,0.19140111,94392.0,94373.0,0.05529813]
[1768335399245,0.00011351,94391.0,94373.0,0.05529813]
[1768335399443,0.010597,94390.0,94374.0,0.010599]
[1768335399641,0.010597,94390.0,94374.0,0.05]
[1768335399842,0.00011351,94391.0,94374.0,0.05]
[1768335400442,0.010597,94390.0,94374.0,0.05]
[1768335400639,0.08334834,94403.0,94374.0,0.05]
[1768335400640,0.0954,94409.0,94384.0,0.19048914]
[1768335400843,0.09024313,94410.0,94388.0,0.09916726]
[1768335401039,0.09024313,94410.0,94388.0,0.10916726]
[1768335401437,0.010596,94399.0,94388.0,0.10916726]
[1768335402450,0.010596,94401.0,94388.0,0.10916726]
[1768335402648,0.010596,94401.0,94388.0,0.01]
[1768335402943,0.010596,94395.0,94388.0,0.01]
[1768335403138,0.010596,94399.0,94388.0,0.01]
[1768335403338,0.18080411,94403.0,94388.0,0.01]
[1768335403541,0.01784889,94406.0,94395.0,0.010596]
[1768335403852,0.010593,94424.0,94403.0,0.09132188]
[1768335404046,0.09024313,94431.0,94408.0,0.19048914]
[1768335404245,0.010594,94421.0,94403.0,0.105995]
[1768335404434,0.10083713,94421.0,94403.0,0.105995]
[1768335404741,0.010594,94419.0,94403.0,0.105995]
[1768335404941,0.010594,94417.0,94403.0,0.0954]
[1768335405164,0.010594,94416.0,94399.0,0.010596]
[1768335405338,0.010595,94409.0,94400.0,0.0954]
[1768335405648,0.010595,94409.0,94401.0,0.0954]
[1768335405835,0.010595,94409.0,94393.0,0.010597]
[1768335405836,0.010595,94407.0,94400.0,0.0954]
[1768335406040,0.010594,94420.0,94387.0,0.010597]
[1768335406041,0.18080411,94410.0,94387.0,0.010597]
[1768335406246,0.18080411,94410.0,94389.0,0.010597]
[1768335406247,0.010595,94406.0,94389.0,0.010597]
[1768335406440,0.010595,94404.0,94389.0,0.06]
[1768335407047,0.09024313,94404.0,94389.0,0.06]
[1768335407240,0.09024313,94404.0,94380.0,0.10191988]
[1768335407241,0.09024313,94402.0,94386.0,0.0954]
[1768335407440,0.09024313,94402.0,94386.0,0.1154]
[1768335407644,0.010596,94404.0,94386.0,0.30588914]
[1768335408053,0.010595,94407.0,94387.0,0.010597]
[1768335408346,0.10083813,94410.0,94389.0,0.010597]
[1768335408652,0.10083813,94410.0,94389.0,0.060597]
[1768335408950,0.010595,94407.0,94389.0,0.05]
[1768335409951,0.010595,94407.0,94389.0,0.028]
[1768335410149,0.01075389,94407.0,94389.0,0.028]
[1768335410348,0.010595,94405.0,94389.0,0.028]
[1768335411151,0.00015889,94407.0,94389.0,0.038597]
[1768335411655,0.01075389,94407.0,94389.0,0.028]
[1768335413454,0.00015889,94407.0,94389.0,0.03875589]
[1768335413666,0.010595,94406.0,94389.0,0.02815889]
[1768335413947,0.00015889,94407.0,94389.0,0.02815889]
[1768335414148,0.09040202,94407.0,94389.0,0.02815889]
[1768335414353,0.010596,94398.0,94389.0,0.02815889]
[1768335414539,0.00015889,94407.0,94379.0,0.0954]
[1768335414540,0.09024313,94395.0,94379.0,0.0954]
[1768335414741,0.09024313,94395.0,94379.0,0.1554]
[1768335416246,0.010596,94398.0,94379.0,0.1554]
[1768335417552,0.010596,94396.0,94379.0,0.1554]
[1768335417759,0.010596,94399.0,94379.0,0.1254]
[1768335417958,0.09056098,94405.0,94381.0,0.09132188]
[1768335418157,0.010596,94400.0,94381.0,0.25048914]
[1768335418559,0.09024313,94404.0,94381.0,0.06]
[1768335418761,0.010596,94400.0,94383.0,0.09132188]
[1768335418953,0.010596,94400.0,94383.0,0.15132188]
[1768335419657,0.0954,94406.0,94384.0,0.09916726]
[1768335419954,0.010596,94400.0,94384.0,0.15916726]
[1768335420560,0.0954,94406.0,94387.0,0.09132188]
[1768335420754,0.09024313,94423.0,94393.0,0.09132188]
[1768335420951,0.010594,94414.0,94395.0,0.09132188]
[1768335421353,0.010594,94418.0,94397.0,0.010596]
[1768335421552,0.010594,94420.0,94402.0,0.19048914]
[1768335421764,0.010594,94420.0,94403.0,0.19048914]
[1768335422059,0.010592,94435.0,94406.0,0.09916726]
[1768335422060,0.010593,94426.0,94406.0,0.09916726]
[1768335422466,0.010593,94426.0,94407.0,0.09132188]
[1768335422661,0.010593,94427.0,94408.0,0.09916726]
[1768335422964,0.010593,94427.0,94408.0,0.19048914]
[1768335423365,0.010593,94425.0,94408.0,0.19048914]
[1768335423554,0.010594,94422.0,94403.0,0.19456726]
[1768335424162,0.18080411,94423.0,94398.0,0.10976326]
[1768335424358,0.18080411,94419.0,94398.0,0.01]
[1768335424559,0.010594,94417.0,94398.0,0.1054]
[1768335425366,0.010594,94417.0,94398.0,0.1004]
[1768335425551,0.09868364,94423.0,94400.0,0.18978307]
[1768335425756,0.09942932,94425.0,94405.0,0.010595]
[1768335425958,5e-05,94427.0,94405.0,0.09907085]
[1768335426266,5e-05,94427.0,94408.0,0.09071222]
[1768335426267,0.010643,94427.0,94408.0,0.09071222]
[1768335426464,0.010643,94427.0,94408.0,0.18978307]
[1768335426656,0.010643,94427.0,94409.0,0.09907085]
[1768335427070,5e-05,94427.0,94409.0,0.18978307]
[1768335427264,0.010591,94443.0,94422.0,0.18978307]
[1768335427464,0.010591,94441.0,94425.0,0.09907085]
[1768335429161,0.010641,94441.0,94425.0,0.09907085]
[1768335430671,0.010592,94439.0,94425.0,0.09907085]
[1768335431762,5e-05,94441.0,94425.0,0.09907085]
[1768335432477,0.010641,94441.0,94425.0,0.09907085]
[1768335432678,0.010592,94439.0,94424.0,0.09071222]
[1768335432979,0.0001,94441.0,94424.0,0.10130522]
[1768335433169,0.0001,94441.0,94424.0,0.09130522]
[1768335434073,0.010592,94438.0,94423.0,0.00015889]
[1768335434269,0.19811296,94439.0,94423.0,0.00015889]
[1768335434466,0.09942932,94429.0,94403.0,0.10966685]
[1768335434667,0.09942932,94429.0,94416.0,0.010594]
[1768335434868,0.09942932,94429.0,94416.0,0.060594]
[1768335435070,0.09942932,94429.0,94416.0,0.05]
[1768335435872,0.09947932,94429.0,94416.0,0.05]
[1768335437677,0.096466,94426.0,94416.0,0.02]
[1768335438179,0.096466,94425.0,94413.0,0.00529588]
[1768335438375,0.096466,94425.0,94413.0,0.05529588]
[1768335438679,0.107059,94425.0,94413.0,0.05529588]
[1768335438882,0.096466,94425.0,94413.0,8.8e-07]
[1768335439381,0.096466,94424.0,94413.0,8.8e-07]
[1768335439573,0.010594,94419.0,94413.0,8.8e-07]
[1768335439775,0.096466,94416.0,94413.0,8.8e-07]
[1768335439970,0.096466,94416.0,94394.0,0.17780651]
[1768335439971,0.2069107,94416.0,94394.0,0.17780651]
[1768335440175,0.096466,94415.0,94395.0,0.105956]
[1768335440372,0.096466,94415.0,94397.0,0.010596]
[1768335440688,0.00015889,94414.0,94397.0,0.37]
[1768335440868,0.00015889,94414.0,94397.0,0.344]
[1768335441067,0.2069117,94412.0,94397.0,0.034]
[1768335441280,0.096466,94411.0,94397.0,0.034]
[1768335441582,0.096466,94411.0,94397.0,0.114]
[1768335441778,0.107061,94411.0,94397.0,0.114]
[1768335442086,0.096466,94410.0,94397.0,0.114]
[1768335443578,0.010595,94404.0,94386.0,0.09780651]
[1768335443778,0.096466,94406.0,94386.0,0.05]
[1768335443978,0.107061,94405.0,94386.0,0.05]
[1768335444179,0.096466,94405.0,94386.0,0.05]
[1768335444575,0.096466,94405.0,94386.0,0.14]
[1768335445779,0.096466,94402.0,94386.0,0.14]
[1768335446969,0.00015889,94414.0,94394.0,0.19284267]
[1768335447172,0.0954,94433.0,94409.0,0.19284267]
[1768335447376,0.010592,94432.0,94410.0,0.09780651]
[1768335447576,0.096466,94428.0,94410.0,0.02]
[1768335447782,0.096466,94426.0,94410.0,0.02]
[1768335448382,0.010593,94428.0,94410.0,0.02]
[1768335448683,0.010593,94428.0,94410.0,0.014]
[1768335449474,0.010592,94431.0,94410.0,0.014]
[1768335449677,0.10069476,94433.0,94411.0,0.09503616]
[1768335449878,0.010592,94432.0,94412.0,0.09780651]
[1768335450096,0.010592,94432.0,94412.0,0.14780651]
[1768335450479,0.010593,94430.0,94412.0,0.14780651]
[1768335450682,0.010593,94428.0,94412.0,0.05]
[1768335450990,0.107109,94429.0,94412.0,0.05]
[1768335451288,0.010593,94427.0,94412.0,0.05]
[1768335451983,0.09667489,94429.0,94412.0,0.05]
[1768335452382,0.010593,94428.0,94412.0,0.05]
[1768335452588,0.09667489,94429.0,94412.0,0.05]
[1768335453191,0.010593,94427.0,94412.0,0.05]
[1768335454390,0.01080189,94429.0,94412.0,0.05]
[1768335454892,0.010593,94427.0,94412.0,0.05]
[1768335455590,0.010593,94423.0,94412.0,0.07]
[1768335455785,0.00020889,94429.0,94412.0,0.05]
[1768335455988,0.010593,94426.0,94412.0,0.05]
[1768335456184,0.00020889,94429.0,94412.0,0.051594]
[1768335456585,0.09121186,94426.0,94412.0,0.041]
[1768335456786,0.00020889,94429.0,94394.0,0.010597]
[1768335456787,0.010594,94414.0,94394.0,0.010597]
[1768335457090,0.010594,94413.0,94395.0,0.09724966]
[1768335457295,0.09121186,94416.0,94395.0,0.29724966]
[1768335457590,0.0954,94420.0,94376.0,0.17724966]
[1768335457591,0.010597,94394.0,94376.0,0.17724966]
[1768335457781,0.0954,94401.0,94385.0,0.09724966]
[1768335457986,0.0954,94401.0,94385.0,0.06]
[1768335458187,0.010597,94395.0,94385.0,0.06]
[1768335458787,0.010596,94398.0,94385.0,0.06]
[1768335460090,0.010596,94396.0,94385.0,0.06]
[1768335460591,0.09121186,94398.0,94385.0,0.06]
[1768335461195,0.09121186,94398.0,94376.0,0.09990541]
[1768335461392,0.09957831,94389.0,94376.0,0.03]
[1768335461696,0.20138717,94389.0,94376.0,0.03]
[1768335461899,0.010597,94387.0,94376.0,0.03]
[1768335462693,0.09121186,94389.0,94376.0,0.03]
[1768335463692,0.09121186,94387.0,94376.0,0.03]
[1768335463896,0.09121186,94384.0,94376.0,0.02308667]
[1768335464088,0.09121186,94384.0,94376.0,0.00508667]
[1768335465200,0.23565714,94390.0,94376.0,0.00508667]
[1768335465201,0.0954,94390.0,94376.0,0.00508667]
[1768335465397,0.18661186,94390.0,94376.0,0.00508667]
[1768335466098,0.010597,94389.0,94376.0,0.00508667]
[1768335466595,0.010597,94387.0,94376.0,0.00508667]
[1768335467196,0.18661186,94390.0,94376.0,0.00508667]
[1768335467697,0.010597,94389.0,94376.0,0.00508667]
[1768335468699,0.010597,94388.0,94376.0,0.00508667]
[1768335469295,0.010597,94387.0,94376.0,0.06]
[1768335469499,0.10180886,94387.0,94376.0,0.06]
[1768335469997,0.09121186,94387.0,94376.0,0.06]
[1768335470394,0.09121186,94376.0,94353.0,0.09724966]
[1768335470593,0.14025714,94400.0,94365.0,0.09724966]
[1768335470594,0.19079017,94388.0,94365.0,0.09724966]
[1768335470808,0.09121186,94384.0,94365.0,0.06]
[1768335471099,0.010598,94381.0,94365.0,0.06]
[1768335471300,0.09121186,94384.0,94365.0,0.06]
[1768335471692,0.010598,94383.0,94365.0,0.06]
[1768335471898,0.010599,94374.0,94365.0,0.044]
[1768335472198,0.010599,94374.0,94365.0,0.04]
[1768335472199,0.10181086,94373.0,94365.0,0.04]
[1768335472396,0.10181086,94373.0,94365.0,0.02]
[1768335472593,0.10181086,94373.0,94365.0,0.04]
[1768335473100,0.20138917,94373.0,94365.0,0.04]
[1768335473299,0.20138917,94373.0,94349.0,0.29255507]
[1768335473300,0.0954,94376.0,94352.0,0.09724966]
[1768335473497,0.0954,94376.0,94353.0,0.09724966]
[1768335473498,0.010599,94372.0,94353.0,0.09724966]
[1768335473702,0.0954,94376.0,94353.0,0.20724966]
[1768335473903,0.28619017,94376.0,94353.0,0.20724966]
[1768335474096,0.19079017,94375.0,94353.0,0.11]
[1768335474296,0.010599,94371.0,94353.0,0.11]
[1768335474497,0.010599,94369.0,94353.0,0.11]
[1768335476004,0.010599,94371.0,94353.0,0.11]
[1768335476495,0.010599,94369.0,94353.0,0.11]
[1768335477602,0.010599,94369.0,94353.0,0.41]
[1768335478006,0.010599,94369.0,94353.0,0.19]
[1768335478213,0.19079017,94374.0,94353.0,0.19]
[1768335478398,0.0106,94365.0,94353.0,0.19]
[1768335478704,0.19079017,94370.0,94353.0,0.19]
[1768335479003,0.10181086,94370.0,94353.0,0.06]
[1768335479403,0.09354438,94363.0,94353.0,0.06]
[1768335479603,0.09354438,94363.0,94353.0,0.132]
[1768335481000,0.09354438,94363.0,94353.0,0.042]
[1768335481497,0.09121186,94370.0,94353.0,0.04194629]
[1768335481498,0.19079017,94365.0,94353.0,0.04194629]
[1768335482007,0.19079017,94364.0,94353.0,0.04194629]
[1768335482612,0.09957831,94372.0,94353.0,0.04194629]
[1768335482915,0.198,94387.0,94364.0,0.19715507]
[1768335483209,0.198,94387.0,94371.0,0.19715507]
[1768335483396,0.013021,94388.0,94371.0,0.010599]
[1768335483709,0.010597,94391.0,94372.0,0.19715507]
[1768335483906,0.010597,94389.0,94372.0,0.19715507]
[1768335484111,0.09544,94394.0,94372.0,0.19715507]
[1768335484112,0.010597,94390.0,94372.0,0.19715507]
[1768335484312,0.010597,94390.0,94372.0,0.21715507]
[1768335485208,0.010597,94388.0,94372.0,0.21715507]
[1768335485411,0.01269348,94392.0,94372.0,0.21715507]
[1768335485612,0.005297,94393.0,94372.0,0.21715507]
[1768335486004,0.010597,94389.0,94372.0,0.21715507]
[1768335486910,0.0183489,94393.0,94372.0,0.21715507]
[1768335486911,0.010597,94387.0,94372.0,0.21715507]
[1768335487112,0.0183489,94393.0,94372.0,0.21715507]
[1768335487113,0.010597,94389.0,94372.0,0.21715507]
[1768335487307,0.010597,94389.0,94372.0,0.21215507]
[1768335488011,0.010597,94387.0,94372.0,0.21215507]
[1768335488405,0.010598,94385.0,94372.0,0.02]
[1768335489012,0.010598,94383.0,94372.0,0.02]
[1768335489211,0.09389343,94387.0,94372.0,0.02]
[1768335489511,0.010598,94386.0,94372.0,0.02]
[1768335490709,0.11224233,94393.0,94372.0,0.21213208]
[1768335490914,0.010597,94390.0,94374.0,0.19213208]
[1768335491114,0.010597,94390.0,94374.0,0.25213208]
[1768335491409,0.0183489,94393.0,94379.0,0.19213208]
[1768335491607,0.010596,94401.0,94388.0,0.09353275]
[1768335491808,0.09544,94404.0,94388.0,0.12353275]
[1768335492006,0.010596,94401.0,94388.0,0.12353275]
[1768335492804,0.0126721,94403.0,94388.0,0.12353275]
[1768335493006,0.09544,94404.0,94388.0,0.12353275]
[1768335493210,0.010596,94401.0,94388.0,0.12353275]
[1768335493515,0.09544,94404.0,94388.0,0.03]
[1768335494015,0.010596,94398.0,94388.0,0.03]
[1768335494511,0.01310353,94403.0,94381.0,0.09353275]
[1768335494700,0.09389343,94396.0,94381.0,0.03]
[1768335494903,0.1403227,94400.0,94381.0,0.016]
[1768335495105,0.10681769,94403.0,94381.0,0.016]
[1768335495310,0.010596,94400.0,94381.0,0.016]
[1768335495509,0.01292426,94403.0,94387.0,0.20272908]
[1768335495710,0.09544,94404.0,94389.0,0.19213208]
[1768335495905,0.09544,94404.0,94389.0,0.24213208]
[1768335496112,0.1188039,94404.0,94389.0,0.24213208]
[1768335496322,0.1188039,94404.0,94389.0,0.14353275]
[1768335496503,0.1188039,94404.0,94389.0,0.05]
[1768335498019,0.1082089,94404.0,94389.0,0.05]
[1768335498618,0.09544,94404.0,94393.0,0.19490332]
[1768335498920,0.09544,94404.0,94393.0,0.25490332]
[1768335499223,1e-08,94406.0,94395.0,0.09981757]
[1768335499525,1e-08,94406.0,94395.0,0.15981757]
[1768335500919,0.010595,94405.0,94395.0,0.15981757]
[1768335501225,0.010595,94405.0,94395.0,0.06]
[1768335502226,0.010595,94405.0,94395.0,0.05984112]
[1768335502709,0.010595,94405.0,94395.0,0.04784112]
[1768335503113,0.0954,94421.0,94404.0,0.09981757]
[1768335503322,0.010594,94417.0,94404.0,0.15981757]
[1768335503521,0.010594,94420.0,94405.0,0.09981757]
[1768335503823,0.09808968,94454.0,94421.0,0.19490332]
[1768335504023,0.01059,94449.0,94430.0,0.05013403]
[1768335504327,0.09342789,94450.0,94428.0,0.09508575]
[1768335504512,0.10867968,94454.0,94434.0,0.010592]
[1768335504716,0.01267158,94450.0,94435.0,0.09508575]
[1768335505624,0.10599,94455.0,94435.0,0.09508575]
[1768335506117,0.01059,94453.0,94435.0,0.09508575]
[1768335507224,0.0954,94452.0,94435.0,0.09508575]
[1768335507926,0.10599,94452.0,94435.0,0.09508575]
[1768335508531,0.010587,94483.0,94456.0,0.19490332]
[1768335508829,0.02330589,94487.0,94463.0,0.19490332]
[1768335509127,0.0954,94486.0,94466.0,0.010588]
[1768335509426,0.0954,94486.0,94466.0,0.040588]
[1768335509627,0.14003806,94490.0,94466.0,0.03]
[1768335509832,0.01272759,94490.0,94469.0,0.19490332]
[1768335510027,0.010586,94490.0,94469.0,0.19490332]
[1768335510239,0.010586,94486.0,94469.0,0.10981757]
[1768335510430,0.15062406,94490.0,94469.0,0.10981757]
[1768335510625,0.15062406,94490.0,94469.0,0.09981757]
[1768335510829,0.16359034,94490.0,94469.0,0.08981757]
[1768335511028,0.15062406,94490.0,94469.0,0.08981757]
[1768335511824,0.010586,94490.0,94469.0,0.08981757]
[1768335512024,0.15062406,94490.0,94469.0,0.08981757]
[1768335513237,0.010586,94487.0,94469.0,0.08981757]
[1768335513435,0.010586,94487.0,94467.0,0.0001588]
[1768335514026,0.23812774,94490.0,94467.0,0.0001588]
[1768335514228,0.010586,94486.0,94467.0,0.0001588]
[1768335514638,0.010586,94486.0,94468.0,0.09508575]
[1768335515136,0.14003806,94490.0,94468.0,0.09508575]
[1768335515137,0.010587,94481.0,94468.0,0.09508575]
[1768335515337,0.010586,94485.0,94468.0,0.10508575]
[1768335515837,0.010586,94485.0,94468.0,0.01]
[1768335516528,0.14003806,94490.0,94468.0,0.01]
[1768335517422,0.010587,94481.0,94468.0,0.01]
[1768335518438,0.010587,94481.0,94468.0,0.06]
[1768335518634,0.010587,94482.0,94468.0,0.06]
[1768335518834,0.010587,94478.0,94468.0,0.02]
[1768335519030,0.14003806,94478.0,94468.0,0.03]
[1768335519234,0.09536,94480.0,94468.0,0.03]
[1768335519537,0.105947,94480.0,94468.0,0.03]
[1768335519935,0.09536,94480.0,94468.0,0.03]
[1768335520631,0.14003806,94490.0,94468.0,0.03]
[1768335520829,0.010586,94486.0,94468.0,0.03]
[1768335521027,0.09536,94485.0,94468.0,0.03]
[1768335521529,0.09536,94485.0,94469.0,0.010588]
[1768335521836,0.09536,94484.0,94470.0,0.09199296]
[1768335522030,0.09536,94484.0,94470.0,0.15199296]
[1768335522332,5e-05,94485.0,94470.0,0.15199296]
[1768335522637,0.09536,94484.0,94470.0,0.15199296]
[1768335523436,0.105947,94484.0,94470.0,0.06]
[1768335523825,0.09536,94484.0,94470.0,0.02]
[1768335524034,0.15062506,94480.0,94470.0,0.02]
[1768335524323,0.14003806,94480.0,94470.0,0.05]
[1768335524528,0.010587,94483.0,94470.0,0.05]
[1768335525127,0.105996,94484.0,94470.0,0.05]
[1768335525340,0.09157972,94471.0,94446.0,0.18993378]
[1768335525536,0.09157972,94471.0,94448.0,0.09199296]
[1768335525731,0.09157972,94471.0,94448.0,0.15199296]
[1768335526543,0.09157972,94460.0,94448.0,0.06]
[1768335526844,0.010589,94466.0,94448.0,0.06]
[1768335527141,0.010588,94467.0,94448.0,0.041]
[1768335527336,5e-05,94460.0,94448.0,0.041]
[1768335528038,5e-05,94460.0,94449.0,0.09199296]
[1768335528243,5e-05,94460.0,94449.0,0.14199296]
[1768335528837,0.09157972,94476.0,94449.0,0.14199296]
[1768335528838,0.09157972,94482.0,94454.0,0.09199296]
[1768335529142,0.010587,94476.0,94457.0,0.09199296]
[1768335529342,0.010587,94476.0,94457.0,0.15199296]
[1768335529531,0.010588,94474.0,94457.0,0.15199296]
[1768335529728,0.09157972,94466.0,94457.0,0.06]
[1768335530037,0.010589,94463.0,94438.0,0.08]
[1768335530244,0.10216872,94463.0,94445.0,0.0501588]
[1768335530538,0.09536,94465.0,94445.0,0.0501588]
[1768335531042,5e-05,94463.0,94445.0,0.0501588]
[1768335531744,0.0001,94463.0,94445.0,0.0501588]
[1768335532834,0.010589,94460.0,94445.0,0.0501588]
[1768335534144,0.09157972,94461.0,94445.0,0.0501588]
[1768335534647,0.01059,94455.0,94445.0,0.0501588]
[1768335534834,0.01059,94453.0,94445.0,0.0451588]
[1768335535039,0.09536,94454.0,94445.0,0.0451588]
[1768335538544,0.09536,94454.0,94445.0,0.0551588]
[1768335539849,0.09536,94460.0,94447.0,0.09199296]
[1768335540041,0.09536,94460.0,94448.0,0.18993378]
[1768335540250,0.09536,94460.0,94448.0,0.23993378]
[1768335541149,0.105949,94460.0,94448.0,0.05]
[1768335542346,0.09536,94460.0,94448.0,0.05]
[1768335542538,0.30085702,94540.0,94453.0,0.18093378]
[1768335542539,0.09536,94467.0,94453.0,0.18093378]
[1768335542743,0.09536,94467.0,94454.0,0.09794082]
[1768335542952,0.09536,94467.0,94454.0,0.15794082]
[1768335543447,0.20355773,94467.0,94454.0,0.06]
[1768335543654,0.28454945,94467.0,94454.0,0.06]
[1768335544240,0.19296973,94467.0,94454.0,0.06]
[1768335545352,0.09918811,94464.0,94445.0,0.0001588]
[1768335545557,0.09536,94467.0,94446.0,0.1927046]
[1768335545764,0.09536,94467.0,94446.0,0.2632956]
[1768335546053,0.09536,94467.0,94448.0,0.1927046]
[1768335546250,0.09443096,94483.0,94456.0,0.09722894]
[1768335546453,0.09536,94480.0,94463.0,0.1927046]
[1768335546640,0.09536,94480.0,94463.0,0.2427046]
[1768335547046,0.09536,94480.0,94463.0,0.05]
[1768335547252,0.010587,94477.0,94463.0,0.05]
[1768335547841,0.09536,94480.0,94463.0,0.05]
[1768335548052,0.10977611,94474.0,94463.0,0.04]
[1768335548256,0.010588,94475.0,94463.0,0.04]
[1768335549046,0.09443096,94472.0,94445.0,0.0107498]
[1768335549242,0.010588,94470.0,94445.0,0.4401588]
[1768335549451,0.09536,94469.0,94445.0,0.53563446]
[1768335549756,0.09536,94469.0,94446.0,0.1927046]
[1768335549954,0.09536,94469.0,94447.0,0.09547566]